Workbook

Sheet Лист1
A1: Школа | B1: МБОУ"Байсаровская ООШ" | E1: Отд./корп | M1: Дата | N1: 2024-04-20
A3: № рец. | B3: Наименование блюд | C3: Выход | D3: Белки, г | E3: Жиры, г | F3: Углеводы, г | G3: Калорийность, ккал | H3: Витамин В1, мг | I3: Витамин С, мг | J3: Витамин Е, мг | K3: Ca, мг | L3: Р, мг | M3: Mg, мг | N3: Fe, мг
B4: 1-ая неделя
B5: 6 день
A6: 338 | B6: ФРУКТЫ (В АССОРТИМЕНТЕ) | C6: 100 | D6: 0.4 | E6: 0.4 | F6: 9.8 | G6: 47 | H6: 0.03 | I6: 2.2 | J6: 0.2 | K6: 116 | L6: 11 | M6: 9 | N6: 0.6
A7: 58 | B7: ИКРА МОРКОВНАЯ | C7: 60 | D7: 1.21 | E7: 0.06 | F7: 12.33 | G7: 54.6 | H7: 0.024 | I7: 2.53 | J7: 12.18 | K7: 27.92 | L7: 36.55 | M7: 19.34 | N7: 0.62
A8: 174 | B8: ЖАРКОЕ ПО-ДОМАШНЕМУ | C8: 190 | D8: 21.46 | E8: 21.6 | F8: 22.13 | G8: 368.6 | H8: 0.22 | I8: 27.59 | J8: 1.92 | K8: 28.69 | L8: 272.17 | M8: 54.81 | N8: 4.03
A9: 349 | B9: КОМПОТ ИЗ СУХОФРУКТОВ | C9: 200 | D9: 0.66 | E9: 0.09 | F9: 32.01 | G9: 132.8 | H9: 0.016 | I9: 0.73 | J9: 0.51 | K9: 32.48 | L9: 23.44 | M9: 17.46 | N9: 0.7
A10: 573 | B10: ХЛЕБ ПШЕНИЧНЫЙ | C10: 30 | D10: 2.28 | E10: 0.24 | F10: 14.76 | G10: 70.2 | H10: 0.033 | I10: 0 | J10: 0.33 | K10: 6 | L10: 19.5 | M10: 4.2 | N10: 0.33
A11: 575 | B11: ХЛЕБ РЖАНО-ПШЕНИЧНЫЙ | C11: 20 | D11: 1.6 | E11: 0.3 | F11: 8.02 | G11: 41.2 | H11: 0.05 | I11: 0 | J11: 0.46 | K11: 6.6 | L11: 46.8 | M11: 13.2 | N11: 0.88
B12: Итого: | C12: 500 | D12: =SUM(D6:D11) -> 27.61 | E12: =SUM(E6:E11) -> 22.69 | F12: 99.05 | G12: 714.4 | H12: 0.373 | I12: 33.05 | J12: 15.6 | K12: 217.69 | L12: 409.46 | M12: 118.01 | N12: 7.16
B13: Средняя за первую неделю: | C13: =('[1]1'!C5+'[1]1'!C15+'[1]1'!C25+'[1]1'!C34+'[1]2'!C3+'[1]2'!C12)/6 -> 43.33 | D13: =('[1]1'!D5+'[1]1'!D15+'[1]1'!D25+'[1]1'!D34+'[1]2'!D3+'[1]2'!D12)/6 -> 0.38 | E13: =('[1]1'!E5+'[1]1'!E15+'[1]1'!E25+'[1]1'!E34+'[1]2'!E3+'[1]2'!E12)/6 -> 0.76 | F13: =('[1]1'!F5+'[1]1'!F15+'[1]1'!F25+'[1]1'!F34+'[1]2'!F3+'[1]2'!F12)/6 -> 4.10 | G13: =('[1]1'!G5+'[1]1'!G15+'[1]1'!G25+'[1]1'!G34+'[1]2'!G3+'[1]2'!G12)/6 -> 25.67 | H13: =('[1]1'!H5+'[1]1'!H15+'[1]1'!H25+'[1]1'!H34+'[1]2'!H3+'[1]2'!H12)/6 -> 0.02 | I13: =('[1]1'!I5+'[1]1'!I15+'[1]1'!I25+'[1]1'!I34+'[1]2'!I3+'[1]2'!I12)/6 -> 1.61 | J13: =('[1]1'!J5+'[1]1'!J15+'[1]1'!J25+'[1]1'!J34+'[1]2'!J3+'[1]2'!J12)/6 -> 0.35 | K13: =('[1]1'!K5+'[1]1'!K15+'[1]1'!K25+'[1]1'!K34+'[1]2'!K3+'[1]2'!K12)/6 -> 40.07 | L13: =('[1]1'!L5+'[1]1'!L15+'[1]1'!L25+'[1]1'!L34+'[1]2'!L3+'[1]2'!L12)/6 -> 8.77 | M13: =('[1]1'!M5+'[1]1'!M15+'[1]1'!M25+'[1]1'!M34+'[1]2'!M3+'[1]2'!M12)/6 -> 4.70 | N13: =('[1]1'!N5+'[1]1'!N15+'[1]1'!N25+'[1]1'!N34+'[1]2'!N3+'[1]2'!N12)/6 -> 0.27

Sheet Лист2

Sheet Лист3
